[Event "*** Titled Tuesday Blitz"]
[Site "Chess.com"]
[Date "2020.10.27"]
[Round "8"]
[White "FMJoseHerrera"]
[Black "Sharpchess22"]
[Result "0-1"]
[WhiteElo "2567"]
[BlackElo "2774"]
[TimeControl "180+1"]
[EndTime "11:28:44 PDT"]
[Termination "Sharpchess22 won on time"]

1. Nf3 {[%clk 0:03:00.9]} 1... Nf6 {[%clk 0:02:59.6]} 2. g3 {[%clk 0:03:01]}
2... g6 {[%clk 0:02:59.5]} 3. Bg2 {[%clk 0:03:01.2]} 3... Bg7 {[%clk 0:02:59.9]}
4. d3 {[%clk 0:03:02.1]} 4... d5 {[%clk 0:02:59.6]} 5. Nc3 {[%clk 0:03:02.1]}
5... O-O {[%clk 0:02:58.9]} 6. h4 {[%clk 0:03:02.3]} 6... c6 {[%clk 0:02:56.9]}
7. h5 {[%clk 0:03:01.4]} 7... Nxh5 {[%clk 0:02:56.9]} 8. Bg5 {[%clk 0:03:00.6]}
8... Qb6 {[%clk 0:02:47.6]} 9. Qc1 {[%clk 0:02:57.2]} 9... f6 {[%clk 0:02:43.9]}
10. Be3 {[%clk 0:02:54.3]} 10... Qc7 {[%clk 0:02:42.4]} 11. Bh6 {[%clk
0:02:54.2]} 11... e5 {[%clk 0:02:41.3]} 12. Bxg7 {[%clk 0:02:53.1]} 12... Nxg7
{[%clk 0:02:37.6]} 13. e4 {[%clk 0:02:48.4]} 13... d4 {[%clk 0:02:36.6]} 14. Ne2
{[%clk 0:02:48]} 14... c5 {[%clk 0:02:35.2]} 15. Qh6 {[%clk 0:02:47.1]} 15...
Ne6 {[%clk 0:02:34.9]} 16. Nd2 {[%clk 0:02:14.3]} 16... Qg7 {[%clk 0:02:30.8]}
17. Qh4 {[%clk 0:02:13]} 17... Nc6 {[%clk 0:02:27.9]} 18. f4 {[%clk 0:02:09.7]}
18... Nc7 {[%clk 0:02:19.4]} 19. O-O-O {[%clk 0:02:04.1]} 19... b5 {[%clk
0:02:17]} 20. Rdf1 {[%clk 0:02:02.8]} 20... c4 {[%clk 0:02:11.2]} 21. dxc4
{[%clk 0:02:01.3]} 21... bxc4 {[%clk 0:02:11.2]} 22. Nxc4 {[%clk 0:02:02.2]}
22... Ba6 {[%clk 0:02:11]} 23. b3 {[%clk 0:01:36.9]} 23... Bxc4 {[%clk
0:02:09.9]} 24. bxc4 {[%clk 0:01:37.8]} 24... Rab8 {[%clk 0:02:09.5]} 25. fxe5
{[%clk 0:01:26.1]} 25... fxe5 {[%clk 0:02:07.7]} 26. Kd2 {[%clk 0:01:17.5]}
26... Ne6 {[%clk 0:02:02.5]} 27. Nc1 {[%clk 0:01:11.3]} 27... Na5 {[%clk
0:01:59.4]} 28. Nd3 {[%clk 0:01:06.4]} 28... Nxc4+ {[%clk 0:01:58.9]} 29. Ke2
{[%clk 0:01:06.5]} 29... Ne3 {[%clk 0:01:51.7]} 30. Bh3 {[%clk 0:01:05.6]} 30...
Nc7 {[%clk 0:01:47.6]} 31. Nxe5 {[%clk 0:00:50]} 31... Nxf1 {[%clk 0:01:44]} 32.
Bxf1 {[%clk 0:00:41.9]} 32... Rbe8 {[%clk 0:01:40]} 33. Ng4 {[%clk 0:00:30.3]}
33... Rxe4+ {[%clk 0:01:30.7]} 34. Kd1 {[%clk 0:00:30.7]} 34... Kh8 {[%clk
0:01:20.4]} 35. Bd3 {[%clk 0:00:27.8]} 35... Ree8 {[%clk 0:01:16.9]} 36. Qg5
{[%clk 0:00:08.2]} 36... Re6 {[%clk 0:01:13.6]} 37. Nh6 {[%clk 0:00:04.7]} 37...
Qe7 {[%clk 0:01:05.7]} 38. Qg4 {[%clk 0:00:03.6]} 38... Qb4 {[%clk 0:00:59.1]}
39. Qh3 {[%clk 0:00:01.7]} 39... Rf2 {[%clk 0:00:49.9]} 0-1

[Event "*** Titled Tuesday Blitz"]
[Site "Chess.com"]
[Date "2020.10.27"]
[Round "8"]
[White "DonBroca"]
[Black "Cambek64"]
[Result "1-0"]
[WhiteElo "2149"]
[BlackElo "2312"]
[TimeControl "180+1"]
[EndTime "11:28:44 PDT"]
[Termination "DonBroca won by resignation"]

1. e4 {[%clk 0:03:00.9]} 1... e6 {[%clk 0:02:55.4]} 2. d4 {[%clk 0:02:59.6]}
2... d5 {[%clk 0:02:53.7]} 3. exd5 {[%clk 0:03:00.5]} 3... Qxd5 {[%clk
0:02:46.8]} 4. c4 {[%clk 0:03:00]} 4... Qd8 {[%clk 0:02:46.8]} 5. Nc3 {[%clk
0:02:59.5]} 5... Nf6 {[%clk 0:02:47.4]} 6. Nf3 {[%clk 0:02:59.3]} 6... b6 {[%clk
0:02:47.2]} 7. Bd3 {[%clk 0:02:59.4]} 7... Bb7 {[%clk 0:02:47.6]} 8. Qe2 {[%clk
0:02:59.3]} 8... Be7 {[%clk 0:02:46.6]} 9. O-O {[%clk 0:02:57.8]} 9... O-O
{[%clk 0:02:46]} 10. Bf4 {[%clk 0:02:58.3]} 10... a6 {[%clk 0:02:44.2]} 11. Rad1
{[%clk 0:02:47.4]} 11... Nbd7 {[%clk 0:02:44.1]} 12. Ne5 {[%clk 0:02:42.7]}
12... Re8 {[%clk 0:02:34.5]} 13. Ne4 {[%clk 0:02:42.2]} 13... Nxe4 {[%clk
0:02:22.5]} 14. Bxe4 {[%clk 0:02:43.1]} 14... Bxe4 {[%clk 0:02:09.5]} 15. Qxe4
{[%clk 0:02:44]} 15... Nf8 {[%clk 0:01:56.6]} 16. Rfe1 {[%clk 0:02:28.2]} 16...
Bd6 {[%clk 0:01:54.9]} 17. c5 {[%clk 0:02:27.8]} 17... Bxe5 {[%clk 0:01:53.7]}
18. dxe5 {[%clk 0:02:27.8]} 18... Qe7 {[%clk 0:01:53.5]} 19. cxb6 {[%clk
0:02:22.1]} 19... cxb6 {[%clk 0:01:53]} 20. Rd6 {[%clk 0:02:21.8]} 20... b5
{[%clk 0:01:52.5]} 21. Red1 {[%clk 0:02:18.5]} 21... Red8 {[%clk 0:01:48.1]} 22.
Be3 {[%clk 0:02:12]} 22... Rxd6 {[%clk 0:01:47.3]} 23. exd6 {[%clk 0:02:12.9]}
23... Qd8 {[%clk 0:01:30.3]} 24. d7 {[%clk 0:02:05.2]} 24... Rb8 {[%clk
0:01:20.9]} 25. Ba7 {[%clk 0:01:59.7]} 25... Ra8 {[%clk 0:01:12]} 26. Qxa8
{[%clk 0:01:57.9]} 26... Qxa8 {[%clk 0:01:11.5]} 27. d8=Q {[%clk 0:01:58.8]}
27... Qxa7 {[%clk 0:01:10.3]} 28. Qc8 {[%clk 0:01:55]} 28... a5 {[%clk
0:01:04.8]} 29. Rd8 {[%clk 0:01:35.8]} 29... Qe7 {[%clk 0:01:02.3]} 30. a3
{[%clk 0:01:35.7]} 30... b4 {[%clk 0:00:58.4]} 31. Re8 {[%clk 0:01:34.1]} 31...
Qd6 {[%clk 0:00:54.2]} 32. Rd8 {[%clk 0:01:31.8]} 32... Qe7 {[%clk 0:00:52.9]}
33. axb4 {[%clk 0:01:30.6]} 33... Qxb4 {[%clk 0:00:51.8]} 34. h3 {[%clk
0:01:29]} 34... Qe1+ {[%clk 0:00:51.2]} 35. Kh2 {[%clk 0:01:29.3]} 35... Qb4
{[%clk 0:00:44.1]} 36. Qc3 {[%clk 0:01:22.3]} 36... Qf4+ {[%clk 0:00:33]} 37.
Kg1 {[%clk 0:01:21.7]} 37... a4 {[%clk 0:00:28.4]} 38. Rd4 {[%clk 0:01:19.5]}
38... Qe5 {[%clk 0:00:23.4]} 39. Rxa4 {[%clk 0:01:16.6]} 39... Qe2 {[%clk
0:00:23.4]} 40. Rd4 {[%clk 0:01:03.3]} 40... h5 {[%clk 0:00:23.1]} 41. Rd8
{[%clk 0:01:00.9]} 41... Qb5 {[%clk 0:00:12.5]} 42. b4 {[%clk 0:00:59.9]} 42...
g6 {[%clk 0:00:10.8]} 43. Qc5 {[%clk 0:00:58.9]} 1-0

[Event "*** Titled Tuesday Blitz"]
[Site "Chess.com"]
[Date "2020.10.27"]
[Round "8"]
[White "Lion-Al-Messi"]
[Black "YoungUzbek"]
[Result "1-0"]
[WhiteElo "2539"]
[BlackElo "2741"]
[TimeControl "180+1"]
[EndTime "11:28:47 PDT"]
[Termination "Lion-Al-Messi won on time"]

1. d4 {[%clk 0:03:00.9]} 1... Nf6 {[%clk 0:02:59.6]} 2. Nf3 {[%clk 0:03:00.3]}
2... e6 {[%clk 0:02:57.9]} 3. Nc3 {[%clk 0:03:00.6]} 3... c5 {[%clk 0:02:57.2]}
4. d5 {[%clk 0:02:58.3]} 4... d6 {[%clk 0:02:56.8]} 5. e4 {[%clk 0:02:57.4]}
5... e5 {[%clk 0:02:57]} 6. Be2 {[%clk 0:02:55.9]} 6... a6 {[%clk 0:02:55.9]} 7.
a4 {[%clk 0:02:55.4]} 7... Be7 {[%clk 0:02:56.3]} 8. O-O {[%clk 0:02:55.2]} 8...
O-O {[%clk 0:02:56.4]} 9. h3 {[%clk 0:02:53.4]} 9... Ne8 {[%clk 0:02:55.2]} 10.
Nd2 {[%clk 0:02:40.9]} 10... Bg5 {[%clk 0:02:52.8]} 11. Bg4 {[%clk 0:02:33.2]}
11... Nd7 {[%clk 0:02:49.4]} 12. b3 {[%clk 0:02:32.3]} 12... g6 {[%clk
0:02:42.6]} 13. Bb2 {[%clk 0:02:30.9]} 13... f5 {[%clk 0:02:39.8]} 14. exf5
{[%clk 0:02:30]} 14... gxf5 {[%clk 0:02:40.7]} 15. Be2 {[%clk 0:02:29.6]} 15...
Qe7 {[%clk 0:02:15]} 16. Nc4 {[%clk 0:02:28.3]} 16... Rb8 {[%clk 0:02:14.7]} 17.
a5 {[%clk 0:02:27.4]} 17... Nc7 {[%clk 0:02:12.7]} 18. Na4 {[%clk 0:02:02.9]}
18... Nf6 {[%clk 0:02:07]} 19. Nab6 {[%clk 0:02:01.7]} 19... Nb5 {[%clk
0:02:00.4]} 20. Ne3 {[%clk 0:01:10.8]} 20... Ne4 {[%clk 0:01:34.4]} 21. Bd3
{[%clk 0:00:47.1]} 21... Bxe3 {[%clk 0:00:05.3]} 22. fxe3 {[%clk 0:00:31.8]}
22... Qg5 {[%clk 0:00:05.4]} 23. Qe1 {[%clk 0:00:13.2]} 23... Nc7 {[%clk
0:00:02.1]} 24. Rf3 {[%clk 0:00:10.9]} 1-0

[Event "*** Titled Tuesday Blitz"]
[Site "Chess.com"]
[Date "2020.10.27"]
[Round "8"]
[White "MartinMatthiesen"]
[Black "paulrusan"]
[Result "1-0"]
[WhiteElo "2419"]
[BlackElo "2228"]
[TimeControl "180+1"]
[EndTime "11:28:51 PDT"]
[Termination "MartinMatthiesen won by checkmate"]

1. d4 {[%clk 0:03:00.9]} 1... Nf6 {[%clk 0:02:59.5]} 2. c4 {[%clk 0:03:00.3]}
2... g6 {[%clk 0:02:59.6]} 3. Nc3 {[%clk 0:03:00]} 3... Bg7 {[%clk 0:02:59.8]}
4. e4 {[%clk 0:02:58.4]} 4... d6 {[%clk 0:02:59.9]} 5. Nf3 {[%clk 0:02:57.6]}
5... O-O {[%clk 0:02:59.8]} 6. Be2 {[%clk 0:02:57.6]} 6... Bg4 {[%clk
0:02:59.4]} 7. Be3 {[%clk 0:02:55.7]} 7... Nfd7 {[%clk 0:02:59.2]} 8. Ng1 {[%clk
0:02:55.1]} 8... Bxe2 {[%clk 0:02:56.9]} 9. Ngxe2 {[%clk 0:02:56]} 9... e5
{[%clk 0:02:51]} 10. d5 {[%clk 0:02:55.6]} 10... a5 {[%clk 0:02:51.5]} 11. O-O
{[%clk 0:02:54.1]} 11... f5 {[%clk 0:02:51]} 12. f3 {[%clk 0:02:53.9]} 12... Na6
{[%clk 0:02:48.8]} 13. a3 {[%clk 0:02:52.1]} 13... Bf6 {[%clk 0:02:37.4]} 14.
Rb1 {[%clk 0:02:44.5]} 14... Bg5 {[%clk 0:02:35.9]} 15. Bf2 {[%clk 0:02:44.5]}
15... Nb6 {[%clk 0:02:26.3]} 16. Qb3 {[%clk 0:02:29.3]} 16... Nc5 {[%clk
0:02:13.2]} 17. Bxc5 {[%clk 0:02:09.3]} 17... dxc5 {[%clk 0:02:08.8]} 18. Rbd1
{[%clk 0:01:55.9]} 18... a4 {[%clk 0:02:05.6]} 19. Qa2 {[%clk 0:01:53.3]} 19...
Be3+ {[%clk 0:02:05]} 20. Kh1 {[%clk 0:01:52.8]} 20... f4 {[%clk 0:02:05.2]} 21.
Nb5 {[%clk 0:01:45.3]} 21... Rc8 {[%clk 0:01:33.7]} 22. b3 {[%clk 0:01:24.5]}
22... Qh4 {[%clk 0:01:21.3]} 23. bxa4 {[%clk 0:01:20]} 23... g5 {[%clk
0:01:19.2]} 24. a5 {[%clk 0:01:13.9]} 24... Rf6 {[%clk 0:01:11]} 25. g4 {[%clk
0:01:02.6]} 25... fxg3 {[%clk 0:00:57.3]} 26. Nxg3 {[%clk 0:01:01.7]} 26... Nd7
{[%clk 0:00:54.3]} 27. Nf5 {[%clk 0:01:01.5]} 27... Rxf5 {[%clk 0:00:52.9]} 28.
exf5 {[%clk 0:01:01.4]} 28... Nf6 {[%clk 0:00:37.9]} 29. Qe2 {[%clk 0:00:50]}
29... Bf4 {[%clk 0:00:37.4]} 30. d6 {[%clk 0:00:44.1]} 30... cxd6 {[%clk
0:00:36.2]} 31. Nxd6 {[%clk 0:00:43.5]} 31... Ra8 {[%clk 0:00:23.2]} 32. Nxb7
{[%clk 0:00:41.8]} 32... g4 {[%clk 0:00:21.7]} 33. Rd8+ {[%clk 0:00:39.4]} 33...
Rxd8 {[%clk 0:00:20.9]} 34. Nxd8 {[%clk 0:00:40.3]} 34... g3 {[%clk 0:00:20.7]}
35. a6 {[%clk 0:00:37.9]} 35... gxh2 {[%clk 0:00:15.4]} 36. Qg2+ {[%clk
0:00:35.5]} 36... Kf8 {[%clk 0:00:10.5]} 37. Ne6+ {[%clk 0:00:35.2]} 37... Ke7
{[%clk 0:00:07.7]} 38. Qg7+ {[%clk 0:00:35.2]} 38... Kd6 {[%clk 0:00:07.8]} 39.
Qc7# {[%clk 0:00:35.2]} 1-0

[Event "*** Titled Tuesday Blitz"]
[Site "Chess.com"]
[Date "2020.10.27"]
[Round "8"]
[White "reniite"]
[Black "RamyresCoelho"]
[Result "0-1"]
[WhiteElo "1929"]
[BlackElo "2089"]
[TimeControl "180+1"]
[EndTime "11:28:52 PDT"]
[Termination "RamyresCoelho won by resignation"]

1. e4 {[%clk 0:02:57.1]} 1... c5 {[%clk 0:03:00]} 2. Nf3 {[%clk 0:02:54.2]} 2...
d6 {[%clk 0:03:00.1]} 3. d4 {[%clk 0:02:52.9]} 3... cxd4 {[%clk 0:03:01]} 4.
Nxd4 {[%clk 0:02:51.1]} 4... Nf6 {[%clk 0:03:01.9]} 5. Nc3 {[%clk 0:02:51.4]}
5... a6 {[%clk 0:03:02.5]} 6. h3 {[%clk 0:02:50.9]} 6... e6 {[%clk 0:03:03]} 7.
g4 {[%clk 0:02:45.9]} 7... b5 {[%clk 0:03:02.8]} 8. Bg2 {[%clk 0:02:45.4]} 8...
Bb7 {[%clk 0:03:02.8]} 9. a3 {[%clk 0:02:22.1]} 9... Qc7 {[%clk 0:03:02.6]} 10.
Be3 {[%clk 0:02:12.3]} 10... Nfd7 {[%clk 0:03:02.4]} 11. O-O {[%clk 0:02:01.1]}
11... Nb6 {[%clk 0:02:57.9]} 12. Qc1 {[%clk 0:01:31.2]} 12... N8d7 {[%clk
0:02:57.5]} 13. Nde2 {[%clk 0:01:22.5]} 13... Nc4 {[%clk 0:02:57]} 14. Bg5
{[%clk 0:01:21.3]} 14... h6 {[%clk 0:02:54]} 15. Bh4 {[%clk 0:01:21]} 15... Rc8
{[%clk 0:02:53.3]} 16. Bg3 {[%clk 0:01:21.1]} 16... Be7 {[%clk 0:02:46.8]} 17.
Rd1 {[%clk 0:01:03.1]} 17... O-O {[%clk 0:02:42.7]} 18. a4 {[%clk 0:00:54.9]}
18... b4 {[%clk 0:02:41.5]} 19. Na2 {[%clk 0:00:55.4]} 19... Nce5 {[%clk
0:02:25.9]} 20. Nd4 {[%clk 0:00:53]} 20... a5 {[%clk 0:02:19.2]} 21. f4 {[%clk
0:00:51.8]} 21... Nc6 {[%clk 0:02:15.5]} 22. Nxc6 {[%clk 0:00:50.7]} 22... Bxc6
{[%clk 0:02:16.4]} 23. b3 {[%clk 0:00:46.3]} 23... Qb7 {[%clk 0:02:15.8]} 24.
Qe3 {[%clk 0:00:44]} 24... Nf6 {[%clk 0:02:09.2]} 25. Re1 {[%clk 0:00:39]} 25...
d5 {[%clk 0:02:08.6]} 26. e5 {[%clk 0:00:38.3]} 26... Ne4 {[%clk 0:02:08.5]} 27.
Bxe4 {[%clk 0:00:36.5]} 27... dxe4 {[%clk 0:02:09.4]} 28. Rad1 {[%clk
0:00:34.1]} 28... Be8 {[%clk 0:02:02.4]} 29. Qxe4 {[%clk 0:00:32.9]} 29... Bc6
{[%clk 0:02:02.4]} 30. Qe2 {[%clk 0:00:30.1]} 30... Bc5+ {[%clk 0:02:02.2]} 31.
Bf2 {[%clk 0:00:28.7]} 31... Be7 {[%clk 0:02:02.1]} 32. Bd4 {[%clk 0:00:28.1]}
32... Bf3 {[%clk 0:02:01.3]} 33. Qf2 {[%clk 0:00:26.8]} 33... Bxd1 {[%clk
0:02:01.5]} 34. Rxd1 {[%clk 0:00:27.7]} 34... Qc6 {[%clk 0:01:58.1]} 35. c4
{[%clk 0:00:25.2]} 35... bxc3 {[%clk 0:01:57.1]} 36. Nxc3 {[%clk 0:00:25.4]}
36... Rfd8 {[%clk 0:01:56.4]} 37. Nb5 {[%clk 0:00:25.2]} 37... Qc2 {[%clk
0:01:53.4]} 38. Qxc2 {[%clk 0:00:22.3]} 38... Rxc2 {[%clk 0:01:54.3]} 39. Rd3
{[%clk 0:00:22]} 39... Bc5 {[%clk 0:01:51.6]} 40. Kf1 {[%clk 0:00:19.4]} 40...
Bxd4 {[%clk 0:01:47.6]} 41. Rxd4 {[%clk 0:00:19.4]} 41... Rxd4 {[%clk 0:01:47]}
42. Nxd4 {[%clk 0:00:20.3]} 42... Rc3 {[%clk 0:01:46.8]} 43. Ke2 {[%clk
0:00:20.6]} 43... Rxh3 {[%clk 0:01:46.8]} 44. Kd2 {[%clk 0:00:20.6]} 44... Rg3
{[%clk 0:01:45.4]} 45. Kc2 {[%clk 0:00:20.1]} 45... Rxg4 {[%clk 0:01:45.1]} 46.
Kc3 {[%clk 0:00:20.3]} 46... Rxf4 {[%clk 0:01:45]} 47. Nc6 {[%clk 0:00:20.4]}
47... Rf3+ {[%clk 0:01:41.9]} 48. Kc4 {[%clk 0:00:20.3]} 48... Re3 {[%clk
0:01:39.7]} 49. Nxa5 {[%clk 0:00:20.2]} 49... Rxe5 {[%clk 0:01:39.8]} 50. Nc6
{[%clk 0:00:20.6]} 50... Re4+ {[%clk 0:01:39.1]} 51. Kc5 {[%clk 0:00:20.4]}
51... h5 {[%clk 0:01:38.1]} 52. a5 {[%clk 0:00:20.9]} 52... Re1 {[%clk
0:01:29.2]} 53. a6 {[%clk 0:00:21.3]} 53... Ra1 {[%clk 0:01:26.8]} 54. a7 {[%clk
0:00:21.6]} 54... h4 {[%clk 0:01:25.5]} 55. b4 {[%clk 0:00:22.1]} 55... Rxa7
{[%clk 0:01:20.4]} 56. Nxa7 {[%clk 0:00:23]} 56... h3 {[%clk 0:01:20]} 57. b5
{[%clk 0:00:23.6]} 57... h2 {[%clk 0:01:20.3]} 58. b6 {[%clk 0:00:24.2]} 58...
h1=Q {[%clk 0:01:19.3]} 59. Nc6 {[%clk 0:00:24.7]} 59... Qc1+ {[%clk 0:01:18.7]}
0-1

[Event "*** Titled Tuesday Blitz"]
[Site "Chess.com"]
[Date "2020.10.27"]
[Round "8"]
[White "MasterKroket"]
[Black "Keures"]
[Result "1-0"]
[WhiteElo "2412"]
[BlackElo "2231"]
[TimeControl "180+1"]
[EndTime "11:28:55 PDT"]
[Termination "MasterKroket won by resignation"]

1. d4 {[%clk 0:03:00.9]} 1... Nf6 {[%clk 0:02:42.9]} 2. c4 {[%clk 0:02:59]} 2...
c5 {[%clk 0:02:41.5]} 3. d5 {[%clk 0:02:59]} 3... b5 {[%clk 0:02:39.1]} 4. cxb5
{[%clk 0:02:59.9]} 4... a6 {[%clk 0:02:39.1]} 5. bxa6 {[%clk 0:03:00.8]} 5... g6
{[%clk 0:02:38]} 6. Nc3 {[%clk 0:03:01.3]} 6... Bxa6 {[%clk 0:02:38]} 7. Nf3
{[%clk 0:03:01.5]} 7... Bg7 {[%clk 0:02:37.4]} 8. e4 {[%clk 0:03:01.8]} 8...
Bxf1 {[%clk 0:02:37.9]} 9. Kxf1 {[%clk 0:03:02.7]} 9... d6 {[%clk 0:02:38.5]}
10. g3 {[%clk 0:03:03.2]} 10... Nbd7 {[%clk 0:02:37.9]} 11. Kg2 {[%clk
0:03:03.5]} 11... O-O {[%clk 0:02:38.3]} 12. a4 {[%clk 0:03:04.2]} 12... Qa5
{[%clk 0:02:28.1]} 13. Qc2 {[%clk 0:03:01.6]} 13... Rfb8 {[%clk 0:02:27.6]} 14.
Bd2 {[%clk 0:02:57.5]} 14... Qb4 {[%clk 0:02:27.3]} 15. Rhb1 {[%clk 0:02:56.9]}
15... Qb3 {[%clk 0:02:26.9]} 16. Ne1 {[%clk 0:02:56.9]} 16... Ng4 {[%clk
0:02:20.3]} 17. Nb5 {[%clk 0:02:36.9]} 17... Qxc2 {[%clk 0:02:11.8]} 18. Nxc2
{[%clk 0:02:37.8]} 18... Nb6 {[%clk 0:02:06.5]} 19. Nc3 {[%clk 0:02:00.9]} 19...
Bxc3 {[%clk 0:01:44.6]} 20. bxc3 {[%clk 0:02:00.9]} 20... Nc4 {[%clk 0:01:43.5]}
21. Rxb8+ {[%clk 0:01:54.3]} 21... Rxb8 {[%clk 0:01:44.4]} 22. Bc1 {[%clk
0:01:52.4]} 22... Ra8 {[%clk 0:01:42.1]} 23. f4 {[%clk 0:01:49.4]} 23... Nf6
{[%clk 0:01:40.5]} 24. Kf3 {[%clk 0:01:49.1]} 24... Nd7 {[%clk 0:01:40.7]} 25.
Ne3 {[%clk 0:01:43.4]} 25... Nxe3 {[%clk 0:01:38]} 26. Bxe3 {[%clk 0:01:38.9]}
26... Ra6 {[%clk 0:01:38]} 27. Rb1 {[%clk 0:01:30.3]} 27... Rxa4 {[%clk
0:01:23.6]} 28. Rb7 {[%clk 0:01:29.5]} 28... Nf6 {[%clk 0:01:24.2]} 29. Rxe7
{[%clk 0:01:16.6]} 29... Kf8 {[%clk 0:01:24.4]} 30. Rb7 {[%clk 0:01:16.2]} 30...
Nxe4 {[%clk 0:01:24]} 31. f5 {[%clk 0:01:12.6]} 31... Kg7 {[%clk 0:01:20.7]} 32.
fxg6 {[%clk 0:01:12]} 32... hxg6 {[%clk 0:01:20.9]} 33. Rd7 {[%clk 0:01:11.7]}
33... Ra3 {[%clk 0:01:14]} 34. Kxe4 {[%clk 0:01:10.8]} 34... Rxc3 {[%clk
0:01:14.3]} 35. Rxd6 {[%clk 0:01:11]} 35... f5+ {[%clk 0:01:10.2]} 36. Kf3
{[%clk 0:01:09.1]} 36... g5 {[%clk 0:01:09.3]} 37. Rc6 {[%clk 0:01:08.4]} 37...
c4 {[%clk 0:01:07]} 38. d6 {[%clk 0:01:08]} 38... Kf6 {[%clk 0:01:06.7]} 39. Ke2
{[%clk 0:01:01.4]} 39... Ke6 {[%clk 0:01:03.5]} 40. Bxg5 {[%clk 0:00:59.1]}
40... Kd7 {[%clk 0:01:03.9]} 41. Rc5 {[%clk 0:00:58]} 41... Kxd6 {[%clk
0:01:03]} 42. Rxf5 {[%clk 0:00:58.2]} 42... Rc2+ {[%clk 0:01:03.7]} 43. Kf3
{[%clk 0:00:50.9]} 43... Rxh2 {[%clk 0:01:03.8]} 44. Bf4+ {[%clk 0:00:48.4]}
44... Kc6 {[%clk 0:01:02.8]} 45. Rf6+ {[%clk 0:00:48]} 45... Kd5 {[%clk
0:01:02.4]} 46. Rd6+ {[%clk 0:00:47.8]} 46... Kc5 {[%clk 0:01:02.7]} 47. Rd8
{[%clk 0:00:48.2]} 47... c3 {[%clk 0:01:00]} 48. g4 {[%clk 0:00:47.4]} 48...
Rh3+ {[%clk 0:00:59.4]} 49. Ke4 {[%clk 0:00:47.7]} 49... Kc4 {[%clk 0:00:57]}
50. g5 {[%clk 0:00:47]} 50... Rh1 {[%clk 0:00:55.3]} 51. Rc8+ {[%clk 0:00:46.5]}
51... Kb3 {[%clk 0:00:55.5]} 52. g6 {[%clk 0:00:46]} 52... Rg1 {[%clk
0:00:54.9]} 53. Kf5 {[%clk 0:00:46.2]} 53... c2 {[%clk 0:00:54.7]} 54. Kf6
{[%clk 0:00:45.1]} 54... Rf1 {[%clk 0:00:50.5]} 55. g7 {[%clk 0:00:42.2]} 55...
Rxf4+ {[%clk 0:00:49.8]} 56. Kg5 {[%clk 0:00:42.5]} 56... Rf1 {[%clk 0:00:48.8]}
57. g8=Q+ {[%clk 0:00:42.6]} 57... Kb2 {[%clk 0:00:47.7]} 58. Rxc2+ {[%clk
0:00:41.1]} 58... Kxc2 {[%clk 0:00:47.9]} 59. Qc4+ {[%clk 0:00:41.7]} 1-0

[Event "*** Titled Tuesday Blitz"]
[Site "Chess.com"]
[Date "2020.10.27"]
[Round "8"]
[White "Gordima"]
[Black "GMBenjaminBok"]
[Result "0-1"]
[WhiteElo "2809"]
[BlackElo "2945"]
[TimeControl "180+1"]
[EndTime "11:29:01 PDT"]
[Termination "GMBenjaminBok won by resignation"]

1. Nf3 {[%clk 0:03:00.9]} 1... d5 {[%clk 0:02:59.6]} 2. b3 {[%clk 0:03:01.1]}
2... Bf5 {[%clk 0:02:59.1]} 3. Bb2 {[%clk 0:03:01.2]} 3... e6 {[%clk 0:02:59.9]}
4. g3 {[%clk 0:03:01.2]} 4... h6 {[%clk 0:03:00.3]} 5. Bg2 {[%clk 0:02:59]} 5...
Nf6 {[%clk 0:03:00.9]} 6. O-O {[%clk 0:02:59]} 6... Be7 {[%clk 0:03:01.5]} 7. d3
{[%clk 0:02:56.1]} 7... O-O {[%clk 0:03:02]} 8. Nbd2 {[%clk 0:02:54.3]} 8... c5
{[%clk 0:03:02.4]} 9. c4 {[%clk 0:02:52.6]} 9... Nc6 {[%clk 0:02:59.2]} 10. cxd5
{[%clk 0:02:51.5]} 10... exd5 {[%clk 0:02:57.7]} 11. d4 {[%clk 0:02:50]} 11...
Ne4 {[%clk 0:02:43.7]} 12. a3 {[%clk 0:02:48.7]} 12... Bf6 {[%clk 0:02:34.3]}
13. e3 {[%clk 0:02:47.8]} 13... cxd4 {[%clk 0:02:20.5]} 14. exd4 {[%clk
0:02:38.5]} 14... Re8 {[%clk 0:02:18.2]} 15. b4 {[%clk 0:02:37.1]} 15... Rc8
{[%clk 0:02:15.9]} 16. Nb3 {[%clk 0:02:26.4]} 16... Nd6 {[%clk 0:02:14.2]} 17.
Ne5 {[%clk 0:02:07.8]} 17... Nc4 {[%clk 0:02:09.9]} 18. Bc3 {[%clk 0:01:26.9]}
18... N6xe5 {[%clk 0:02:00.4]} 19. dxe5 {[%clk 0:01:24.2]} 19... Nxe5 {[%clk
0:02:01.3]} 20. Rc1 {[%clk 0:01:02.3]} 20... Bg4 {[%clk 0:02:00.4]} 21. f3
{[%clk 0:00:40.2]} 21... Bf5 {[%clk 0:01:59]} 22. f4 {[%clk 0:00:35.9]} 22...
Nd3 {[%clk 0:01:26.2]} 23. Bxf6 {[%clk 0:00:34.1]} 23... Qxf6 {[%clk 0:01:25.3]}
24. Rxc8 {[%clk 0:00:32.8]} 24... Rxc8 {[%clk 0:01:25.4]} 25. Bxd5 {[%clk
0:00:30.5]} 25... Qb6+ {[%clk 0:00:26.8]} 26. Kg2 {[%clk 0:00:30.1]} 26... Rc2+
{[%clk 0:00:22.6]} 27. Qxc2 {[%clk 0:00:17.7]} 27... Ne1+ {[%clk 0:00:23]} 28.
Rxe1 {[%clk 0:00:16.6]} 28... Bxc2 {[%clk 0:00:23.9]} 29. Nc5 {[%clk 0:00:15.3]}
29... Qd8 {[%clk 0:00:21.7]} 30. Bc4 {[%clk 0:00:09]} 30... Bf5 {[%clk
0:00:18.5]} 31. Nxb7 {[%clk 0:00:02.8]} 31... Qd2+ {[%clk 0:00:16.6]} 32. Re2
{[%clk 0:00:03]} 32... Be4+ {[%clk 0:00:17.3]} 33. Kf2 {[%clk 0:00:01.9]} 33...
Qd4+ {[%clk 0:00:17.3]} 0-1